Cogmind - Beta 11.1 @@@ ROGUE MODE // 2022.05.14 @ 04:04:34 Player: Olga Result: Destroyed by H-61 Shepherd with Heavy Assault Cannon Performance ------------- Evolutions (2) 1000 Regions Visited (3) 600 Robots Destroyed (1) 5 Value Destroyed (10) 10 Prototype IDs (0) 0 Alien Tech Used (0) 0 Bonus (200) 200 TOTAL SCORE: 1815 Bonus ------- Pacifist 200 Cogmind --------- Core Integrity 0/550 Matter 300/300 Energy 98/100 System Corruption 1% Temperature Cool (0) Movement Core (50) Location -8/Materials Parts ------- > --- POWER (1) -------- (None) > --- PROPULSION (4) --- (None) > --- UTILITY (4) ------ (None) > --- WEAPON (2) ------- (None) > --- INVENTORY (5) ---- Katana Peak State ------------ None Favorites ----------- Power None Propulsion None Utility None Weapon None Build | -11 -10 -9 -8 ------- Run | Scr Mat Mat Mat Slots Evolved 4 | . . 2 2 Power . | . . . . Propulsion 2 | . . 2 . Utility 2 | . . . 2 Weapon . | . . . . Parts Attached . | . . . . Power . | . . . . Engine . | . . . . Core . | . . . . Reactor . | . . . . Propulsion . | . . . . Treads . | . . . . Leg . | . . . . Wheel . | . . . . Hover . | . . . . Flight . | . . . . Utility . | . . . . Device . | . . . . Storage . | . . . . Processor . | . . . . Hackware . | . . . . Protection . | . . . . Artifact . | . . . . Weapon . | . . . . Energy Gun . | . . . . Energy Cannon . | . . . . Ballistic Gun . | . . . . Ballistic Cannon . | . . . . Launcher . | . . . . Special Weapon . | . . . . Impact Weapon . | . . . . Slashing Weapon . | . . . . Piercing Weapon . | . . . . Special Melee Weapon . | . . . . Unidentified Prototypes . | . . . . Parts Lost . | . . . . Power . | . . . . Propulsion . | . . . . Utility . | . . . . Weapon . | . . . . Highest Loss Streak . | . . . . To Critical Strikes . | . . . . Average Slot Usage (%) . | . . . . Naked Turns 177 | . 48 56 73 Heaviest Build . | . . . . Greatest Support 3 | 3 3 3 3 Greatest Overweight (x) . | . . . . Average Overweight (x) . | . . . . Largest Inventory Capacity 5 | 5 5 5 5 Average Capacity 5 | 5 5 5 5 Most Carried 4 | 4 . . 1 Average Carried . | 2 . . . Final Capacity 5 | 5 5 5 5 Final Carried 1 | . . . 1 Class Distribution -------------------- 100% | Mutant Dominant Class ---------------- Mutant | -10/Materials Mutant | -9/Materials Mutant | -8/Materials Resources | -11 -10 -9 -8 ----------- Run | Scr Mat Mat Mat Matter Collected 200 | 200 . . . Remotely . | . . . . Salvage Created 20 | . . 20 . Parts 1 | . . 1 . Haulers Intercepted . | . . . . Recyclers Shooed . | . . . . Parts Field Recycled . | . . . . Retrieved Matter . | . . . . Parts Self-Destructed . | . . . . Prevented . | . . . . Kills | -11 -10 -9 -8 ------- Run | Scr Mat Mat Mat Combat Hostiles Destroyed 1 | . . 1 . Melee 1 | . . 1 . Classes Destroyed 1 | . . 1 . Swarmer 1 | . . 1 . Best Kill Streak 1 | . . 1 . Combat Bots Only 1 | . . 1 . Max Kills in Single Turn 1 | . . 1 . Gunslinging . | . . . . Exploded . | . . . . Melee 1 | . . 1 . Uniques/NPCs Destroyed . | . . . . Combat | -11 -10 -9 -8 -------- Run | Scr Mat Mat Mat Damage Taken 861 | . 64 241 556 Core 861 | . 64 241 556 Absorbed by Shields . | . . . . Core Remaining (%) 71 | 100 74 39 . Volleys Fired . | . . . . Largest . | . . . . Hottest . | . . . . Shots Fired . | . . . . Gun . | . . . . Cannon . | . . . . Launcher . | . . . . Special . | . . . . Kinetic . | . . . . Thermal . | . . . . Explosive . | . . . . Electromagnetic . | . . . . Robot Hit Streak . | . . . . Robot Miss Streak . | . . . . Penetration Max . | . . . . Secondary Targets . | . . . . Shots Hit Robots . | . . . . Core Hits 4 | . . 2 2 Critical Kills . | . . . . Critical Parts Destroyed . | . . . . Critical Strikes . | . . . . Melee Attacks . | . . . . Impact . | . . . . Slashing . | . . . . Piercing . | . . . . Sneak Attacks . | . . . . Combat Hostiles . | . . . . Follow-up Attacks . | . . . . Damage Inflicted 12 | . . 8 4 Guns . | . . . . Cannons . | . . . . Explosions . | . . . . Melee . | . . . . Ramming 12 | . . 8 4 Kinetic . | . . . . Thermal . | . . . . Explosive . | . . . . Electromagnetic . | . . . . Impact . | . . . . Slashing . | . . . . Piercing . | . . . . Highest Corruption 1 | . . 1 1 Average Corruption 1 | . . 1 1 Corruption Purged . | . . . . Corruption Blocked . | . . . . Effects 1 | . . . 1 Energy Discharges 1 | . . . 1 Overload Shots . | . . . . Overflow Damage . | . . . . Projectiles . | . . . . Explosions . | . . . . Melee . | . . . . Knockbacks . | . . . . Impact . | . . . . Kinetic . | . . . . Secondary . | . . . . Self-Inflicted Damage 4 | . . 3 1 Shots . | . . . . Rammed 4 | . . 2 2 Targets Rammed 4 | . . 2 2 Kicked . | . . . . Crushed . | . . . . Highest Temperature 5 | . . . 5 Average Temperature 5 | . . . 5 Received Heat Transfer 204 | . 6 72 126 Siege Activations . | . . . . Robots Corrupted . | . . . . Combat Hostiles . | . . . . Parts Fried . | . . . . Impact Corruptions . | . . . . Robots Melted . | . . . . Combat Hostiles . | . . . . Parts Melted . | . . . . Heat Transferred . | . . . . Parts Sabotaged . | . . . . Parts Stolen . | . . . . Parts Stripped . | . . . . Power Chain Reactions . | . . . . Missiles Intercepted . | . . . . Alert | -11 -10 -9 -8 ------- Run | Scr Mat Mat Mat Peak Influence 165 | . 15 130 165 Initial 54 | . . 5 54 Average 63 | . 11 61 101 Maximum Alert Level . | . . . . Low Security (%) 100 | 100 100 100 100 Level 1 . | . . . . Level 2 . | . . . . Level 3 . | . . . . Level 4 . | . . . . Level 5 . | . . . . High Security . | . . . . Max Security . | . . . . Squads Dispatched 7 | . 1 5 1 Investigation 5 | . 1 3 1 Extermination . | . . . . Reinforcement 2 | . . 2 . Assault . | . . . . Garrison . | . . . . Intercept . | . . . . Searches Triggered . | . . . . Construction Impeded . | . . . . Haulers Reinforced . | . . . . Active Scanning Responses . | . . . . Cargo Convoy Interrupts . | . . . . Stealth | -11 -10 -9 -8 --------- Run | Scr Mat Mat Mat Distress Signals 2 | . . 1 1 Communications Jammed . | . . . . Distress Signals . | . . . . Times Spotted 45 | . 6 15 24 Peak Tracking Total 23 | . 6 13 23 Tactical Retreats 2 | . . 1 1 Traps | -11 -10 -9 -8 ------- Run | Scr Mat Mat Mat Traps Triggered 2 | . 1 1 . Indirectly . | . . . . Trap Hack Attempts . | . . . . Triggered . | . . . . Disarmed . | . . . . Reprogrammed . | . . . . Reused . | . . . . Traps Extracted . | . . . . Installed . | . . . . Triggered . | . . . . Machines | -11 -10 -9 -8 ---------- Run | Scr Mat Mat Mat Machines Disabled . | . . . . Max in Single Turn . | . . . . Machines Sabotaged . | . . . . Garrisons Compromised . | . . . . Overloaded Fab Kills . | . . . . Hacking | -11 -10 -9 -8 --------- Run | Scr Mat Mat Mat Machines Accessed 4 | . . 3 1 Terminals 4 | . . 3 1 Fabricators . | . . . . Repair Stations . | . . . . Recycling Units . | . . . . Scanalyzers . | . . . . Garrison Access . | . . . . Total Hacks 13 | . . 10 3 Successful 4 | . . 3 1 Failed 9 | . . 7 2 Catastrophic 3 | . . 2 1 Database Lockouts . | . . . . Manual 10 | . . 7 3 Terminals 13 | . . 10 3 Fabricators . | . . . . Repair Stations . | . . . . Recycling Units . | . . . . Scanalyzers . | . . . . Garrison Access . | . . . . Terminal Hacks 2 | . . 1 1 Terminal Index 2 | . . 1 1 Fabricator Hacks . | . . . . Repair Station Hacks . | . . . . Recycling Unit Hacks . | . . . . Scanalyzer . | . . . . Garrison Access Hacks . | . . . . Unauthorized Hacks 2 | . . 2 . Terminals 2 | . . 2 . Botnet 2 | . . 2 . Fabricators . | . . . . Repair Stations . | . . . . Recycling Units . | . . . . Scanalyzers . | . . . . Garrison Access . | . . . . Data Cores Recovered . | . . . . Used . | . . . . Hacking Detections 4 | . . 3 1 Full Trace Events 4 | . . 3 1 Feedback Events 2 | . . 1 1 Corruption 2 | . . 1 1 Feedback Blocked . | . . . . Robot Schematics Acquired . | . . . . Robots Built . | . . . . Authchips . | . . . . Time . | . . . . Total Robot Build Rating . | . . . . Part Schematics Acquired . | . . . . Parts Built . | . . . . Authchips . | . . . . Time . | . . . . Total Part Build Rating . | . . . . Parts Repaired . | . . . . Time . | . . . . Parts Recycled . | . . . . Recycled Matter . | . . . . Retrieved Matter . | . . . . Retrieved Components . | . . . . Parts Scanalyzed . | . . . . Part Schematics Acquired . | . . . . Parts Damaged . | . . . . Bothacking | -11 -10 -9 -8 ------------ Run | Scr Mat Mat Mat Used RIF Installer . | . . . . Robots Hacked . | . . . . Non-combat . | . . . . Combat . | . . . . Robot Hacks Applied . | . . . . Relay Couplers Released . | . . . . Fabnet Peak Effective % . | . . . . Robots Rewired . | . . . . Allies Hacked . | . . . . Hacks Repelled . | . . . . Allies | -11 -10 -9 -8 -------- Run | Scr Mat Mat Mat Total Allies . | . . . . Largest Group . | . . . . Highest-Rated Group . | . . . . Highest-Rated Ally . | . . . . Total Orders . | . . . . Ally Attacks . | . . . . Total Damage . | . . . . Kills . | . . . . Allies Corrupted . | . . . . Allies Melted . | . . . . Intel | -11 -10 -9 -8 ------- Run | Scr Mat Mat Mat Robot Analysis Total . | . . . . Derelict Logs Recovered . | . . . . Drone Launches . | . . . . Drone Recoveries . | . . . . Exploration | -11 -10 -9 -8 ------------- Run | Scr Mat Mat Mat Turns Passed 180 | 3 48 56 73 Spaces Moved 344 | 1 96 107 140 Core 344 | 1 96 107 140 Treads . | . . . . Legs . | . . . . Wheels . | . . . . Hover . | . . . . Flight . | . . . . Fastest Speed 50 | 50 50 50 50 Average Speed 50 | 50 50 50 50 Slowest Speed 50 | 50 50 50 50 Overloaded Moves . | . . . . Propulsion Burnouts . | . . . . Robots Hopped . | . . . . Cave-ins Triggered . | . . . . Exploration Rate (%) 15 | 1 25 14 22 Regions Visited 3 Branch Regions . Pre-discovered Areas . | . . . . Known Exits Taken . | . . . . Unknown Exits Taken 3 | 1 1 1 . Scrap Searched . | . . . . Spaces Dug . | . . . . Terrain Destroyed . | . . . . Melee . | . . . . Projectile . | . . . . AOE . | . . . . Terrain Rammed . | . . . . Walls Destroyed . | . . . . Machines Disabled . | . . . . Actions | -11 -10 -9 -8 --------- Run | Scr Mat Mat Mat Total 351 | 5 95 108 143 Wait . | . . . . Move 341 | . 95 106 140 Hop . | . . . . Pick Up 1 | . . . 1 Fast Attach . | . . . . Attach . | . . . . Detach . | . . . . Swap . | . . . . Drop 5 | 5 . . . Fire . | . . . . Melee . | . . . . Ram 4 | . . 2 2 Kick . | . . . . Crush . | . . . . Escape Stasis . | . . . . Rewire . | . . . . Trap . | . . . . Miscellaneous . | . . . . Route ------- -11/Scrapyard -10/Materials -9/Materials -8/Materials (discovered 1 exit: [*Sto]) History --------- Turn | Location | Event 1 | -11/Scrapyard | Released all parts (6) 4 | -11/Scrapyard | Discovered new exit (range 0) 4 | -11/Scrapyard | Entered Materials 47 | -10/Materials | Discovered new exit (range 11) 52 | -10/Materials | Entered another Materials area 52 | -9/Materials | Evolved 2 slots: Propulsion x2 104 | -9/Materials | Discovered new exit (range 7) 105 | -9/Materials | Core integrity fell below 50% 108 | -9/Materials | Entered another Materials area 108 | -8/Materials | Evolved 2 slots: Utility x2 155 | -8/Materials | Discovered new exit (range 14) 164 | -8/Materials | Core integrity fell below 50% 179 | -8/Materials | Core integrity fell below 20% 181 | -8/Materials | Destroyed by H-61 Shepherd with Heavy Assault Cannon Last Messages --------------- Downloaded coordinate data. Feedback: System corruption (+1%). 00112_ ALERT: Suspicious activity at Terminal M012. Dispatching Investigation squad. 00123_ System corrupted: Energy discharge (-39). 00143_ K-01 Serf collects debris. 00155_ EXIT=FOUND 00156_ K-01 Serf collects debris. 00157_ Acquired Katana. 00160_ S-10 Pest suffers critical hit (Burn). 00160_ S-10 Pest destroyed. 00161_ Slammed into G-50 Soldier. 00162_ Slammed into G-47 Trooper. 00162_ C-30 ARC bursts open, deploying its payload. 00162_ S-10 Pest unfolds itself. 00163_ Critical hit (Burn: +37). 00174_ K-01 Serf collects debris. 00178_ Nuclear Reactor explodes. 00178_ T-07 Excavator destroyed. 00179_ K-01 Serf collects debris. Map ----- +----------------------------------------------------+ | ###+### #????????????????????????????????? | | ????????# #????????????????????????????????? | | ????????# #??#############?????????????????? | | ????????# #??# #????#+##?????????? | | ????????# #??# ##### #?????????? | | ????????# #??# T +?????????? | | ????????# #??# #?????????? | | ????????# #??# / ! +?????????? | | ????????# #??# #?????????? | | ????????# #### #?????????? | | ????????# !! #?????????? | | ????????# !! #?????????? | | ????????# ! #?????????? | | ????????# * #?????????? | | ????????# %|= #?????????? | | ????????######### ########?????????? | | ????????????????# #????????????????? | | ????????????????# #????????????????? | | ????????????????+ w ##????????????????? | | ????????????????# #?????????????????? | | ????????????????# """ #?????????????????? | | ????????????????# """ #?????????????????? | | ????????????????# """ #?????????????????? | | ????????????????# k +?????????????????? | | ????????????????# % #?????????????????? | | ????????????????####+### @ #?????????????????? | | ???????????????????????# #?????????????????? | | ???????????????????????# #?????????????????? | | ???????????????????????# #?????????????????? | | ???????????????????????# #?????????????????? | | ???????????????????????# ;?????????????????? | | ???????????????????????# #?????????????????? | | ???????????????????????# #?????????????????? | | ???????????????????????# w#?????????????????? | | ???????????????????????# #?????????????????? | | ???????????????????????# #?????????????????? | | ??????????????????????? H ?????????????????? | | ??????????????????????? ?????????????????? | | ??????????????????????? ?????????????????? | | ???????????????????????k ?????????????????? | | ??????????????????????? ?????????????????? | | ?????????????????????????????????????????????? | | ?????????????????????????????????????????????? | | ?????????????????????????????????????????????? | | ?????????????????????????????????????????????? | | ?????????????????????????????????????????????? | | ?????????????????????????????????????????????? | | ?????????????????????????????????????????????? | | ?????????????????????????????????????????????? | | ?????????????????????????????????????????????? | +----------------------------------------------------+ Best States ------------- Heat Dissipation 31 Energy Generation 5 Energy Capacity 100 Matter Stores 300 Matter Capacity 300 Sight Range 16 Terrain Scan Density 10 Evasion (%) 50 Item Schematics ----------------- None Robot Schematics ------------------ None Fabricated ------------ Nothing Alien Tech Used ----------------- None Achievements -------------- None Challenges ------------ None Game ------ Seed SmallImprovedKatana Manual? 0 Play Time 00:04:10 Cumulative 256.7 hours Start 2022.05.14 @ 04:01:30 End 2022.05.14 @ 04:04:34 Sessions 1 Manual Loads 0 Difficulty Rogue Special Mode None Game No. 393 Rogue 390 Adventurer 0 Explorer 3 Win Type - Total 9 Types 9/0/0/0/0/0/0/0/0 Lore% 71 Gallery% 75 Achievement% 63 Wizard Run 0 Options --------- ASCII 1 Keyboard 1 Movement Vi Keybinds 0 Fullscreen 1 Font 18/SmallcapsGlow Map View 76x50 Tactical HUD 1 Map Filters NONE Filters NONE Steam 1 RUN: 0829a661-0469-40ea-9ca1-215200c3c1ea